[Event "2026 Biel Blitz Open"]
[Site "Biel, CH"]
[Date "2026.07.19"]
[Round "6"]
[White "Jaggy, Enzo"]
[Black "Mikavica, Dragoljub"]
[Result "1-0"]
[Board "48"]
[TimeControl "180+2"]
[WhiteFideId "1344919"]
[BlackFideId "1308726"]
[WhiteElo "1761"]
[BlackElo "1983"]
[WhiteClock "0:00:35"]
[BlackClock "0:03:02"]
[Variant "Standard"]
[EndDate "2026.07.19"]
[EndTime "13:35:34"]

1. d4 {[%clk 0:03:02]}  g6 {[%clk 0:03:03]} 2. Nf3 {[%clk 0:03:00]}  Bg7 {[%clk 0:03:05]} 3. e4 {[%clk 0:02:55]}  d6 {[%clk 0:03:04]}
4. Bd3 {[%clk 0:02:58]}  Nd7 {[%clk 0:03:05]} 5. Be3 {[%clk 0:02:55]}  b6 {[%clk 0:03:05]} 6. c3 {[%clk 0:02:54]}  a5 {[%clk 0:03:06]}
7. Qe2 {[%clk 0:02:53]}  Ngf6 {[%clk 0:03:05]} 8. h3 {[%clk 0:02:53]}  c5 {[%clk 0:03:04]} 9. Nbd2 {[%clk 0:02:52]}  O-O {[%clk 0:03:00]}
10. Rc1 {[%clk 0:02:48]}  a4 {[%clk 0:03:01]} 11. a3 {[%clk 0:02:47]}  Bb7 {[%clk 0:02:55]} 12. O-O {[%clk 0:02:44]}  e5 {[%clk 0:02:53]}
13. d5 {[%clk 0:02:45]}  Nh5 {[%clk 0:02:44]} 14. Nc4 {[%clk 0:02:35]}  Qc7 {[%clk 0:02:31]} 15. Nh4 {[%clk 0:01:30]}  Bf6 {[%clk 0:02:12]}
16. Qg4 {[%clk 0:01:19]}  Bxh4 {[%clk 0:02:06]} 17. Qxh4 {[%clk 0:01:18]}  Ng7 {[%clk 0:01:43]} 18. f4 {[%clk 0:01:11]}  f5 {[%clk 0:01:36]}
19. fxe5 {[%clk 0:01:09]}  dxe5 {[%clk 0:01:14]} 20. Bh6 {[%clk 0:01:02]}  Qd8 {[%clk 0:00:52]} 21. Bg5 {[%clk 0:00:57]}  Qb8 {[%clk 0:00:42]}
22. Be7 {[%clk 0:00:45]}  Rf7 {[%clk 0:00:39]} 23. d6 {[%clk 0:00:46]}  b5 {[%clk 0:00:30]} 24. exf5 {[%clk 0:00:36]}  Bd5 {[%clk 0:00:16]}
25. fxg6 {[%clk 0:00:34]}  hxg6 {[%clk 0:00:15]} 26. Bxg6 {[%clk 0:00:35]}  Rxe7 {[%clk 0:00:05]} 27. dxe7 {[%clk 0:00:35]}  Qd6 {[%clk 0:00:00]}
28. Qh7# {[%clk 0:00:35]} 1-0

[Event "2026 Biel Blitz Open"]
[Site "Biel, CH"]
[Date "2026.07.19"]
[Round "6"]
[White "Chantrell, Paul"]
[Black "Havolli, Daut"]
[Result "0-1"]
[Board "49"]
[TimeControl "180+2"]
[WhiteFideId "451967"]
[BlackFideId "1315200"]
[WhiteElo "1749"]
[BlackElo "1950"]
[WhiteClock "0:00:08"]
[BlackClock "0:00:05"]
[Variant "Standard"]
[Termination "forfeit"]
[EndDate "2026.07.19"]
[EndTime "13:35:24"]

1. e4 {[%clk 0:03:03]}  c6 {[%clk 0:03:03]} 2. Nc3 {[%clk 0:03:03]}  d5 {[%clk 0:03:05]} 3. Nf3 {[%clk 0:03:04]}  e6 {[%clk 0:03:02]}
4. d4 {[%clk 0:02:59]}  Bb4 {[%clk 0:03:01]} 5. exd5 {[%clk 0:02:55]}  exd5 {[%clk 0:02:59]} 6. Bd2 {[%clk 0:02:54]}  Ne7 {[%clk 0:02:57]}
7. h3 {[%clk 0:02:51]}  O-O {[%clk 0:02:57]} 8. a3 {[%clk 0:02:50]}  Ba5 {[%clk 0:02:58]} 9. Bd3 {[%clk 0:02:47]}  Ng6 {[%clk 0:02:33]}
10. O-O {[%clk 0:02:37]}  Be6 {[%clk 0:02:32]} 11. Re1 {[%clk 0:02:26]}  Bc7 {[%clk 0:02:30]} 12. Bxg6 {[%clk 0:02:12]}  hxg6 {[%clk 0:02:25]}
13. Qc1 {[%clk 0:02:01]}  Nd7 {[%clk 0:02:20]} 14. b4 {[%clk 0:01:58]}  Nf6 {[%clk 0:02:20]} 15. Bg5 {[%clk 0:01:52]}  Qd6 {[%clk 0:02:18]}
16. Ne5 {[%clk 0:01:45]}  Nd7 {[%clk 0:02:10]} 17. Bf4 {[%clk 0:01:39]}  Nxe5 {[%clk 0:01:53]} 18. Bxe5 {[%clk 0:01:39]}  Qd7 {[%clk 0:01:55]}
19. Qf4 {[%clk 0:01:25]}  Bxe5 {[%clk 0:01:45]} 20. Qxe5 {[%clk 0:01:23]}  Bf5 {[%clk 0:01:43]} 21. Qe2 {[%clk 0:01:14]}  Rae8 {[%clk 0:01:38]}
22. Qd2 {[%clk 0:01:15]}  Qd8 {[%clk 0:01:10]} 23. Ne2 {[%clk 0:01:04]}  Qf6 {[%clk 0:00:56]} 24. c3 {[%clk 0:01:01]}  g5 {[%clk 0:00:45]}
25. Ng3 {[%clk 0:00:44]}  Bg6 {[%clk 0:00:46]} 26. f3 {[%clk 0:00:31]}  Qf4 {[%clk 0:00:33]} 27. Qxf4 {[%clk 0:00:29]}  gxf4 {[%clk 0:00:34]}
28. Nf1 {[%clk 0:00:24]}  Bd3 {[%clk 0:00:32]} 29. Nd2 {[%clk 0:00:23]}  f5 {[%clk 0:00:28]} 30. Nb3 {[%clk 0:00:20]}  Re3 {[%clk 0:00:27]}
31. Nc5 {[%clk 0:00:11]}  Bc4 {[%clk 0:00:06]} 32. g3 {[%clk 0:00:07]}  Rxf3 {[%clk 0:00:03]} 33. gxf4 {[%clk 0:00:05]}  Rxc3 {[%clk 0:00:04]}
34. Re7 {[%clk 0:00:03]}  Rxh3 {[%clk 0:00:04]} 35. Kg2 {[%clk 0:00:03]}  Rh4 {[%clk 0:00:05]} 36. Kg3 {[%clk 0:00:03]}  Rg4+ {[%clk 0:00:06]}
37. Kf3 {[%clk 0:00:04]}  Rf6 {[%clk 0:00:06]} 38. Ne6 {[%clk 0:00:04]}  Rh6 {[%clk 0:00:06]} 39. Re8+ {[%clk 0:00:05]}  Kf7 {[%clk 0:00:07]}
40. Rf1 {[%clk 0:00:05]}  Rh3+ {[%clk 0:00:08]} 0-1

[Event "2026 Biel Blitz Open"]
[Site "Biel, CH"]
[Date "2026.07.19"]
[Round "6"]
[White "Delion, Helge"]
[Black "Schaefer, Gion"]
[Result "1-0"]
[Board "50"]
[TimeControl "180+2"]
[WhiteFideId "12914568"]
[BlackFideId "1362097"]
[WhiteElo "1911"]
[BlackElo "1763"]
[WhiteClock "0:00:07"]
[BlackClock "0:00:18"]
[Variant "Standard"]
[EndDate "2026.07.19"]
[EndTime "13:36:49"]

1. e4 {[%clk 0:03:04]}  c5 {[%clk 0:03:04]} 2. Nf3 {[%clk 0:03:04]}  e6 {[%clk 0:03:05]} 3. d4 {[%clk 0:03:04]}  cxd4 {[%clk 0:03:06]}
4. Nxd4 {[%clk 0:03:04]}  Nc6 {[%clk 0:03:08]} 5. Nc3 {[%clk 0:03:05]}  Nf6 {[%clk 0:03:09]} 6. Nxc6 {[%clk 0:03:05]}  bxc6 {[%clk 0:03:10]}
7. e5 {[%clk 0:03:06]}  Nd5 {[%clk 0:03:12]} 8. Ne4 {[%clk 0:03:07]}  Qc7 {[%clk 0:03:11]} 9. f4 {[%clk 0:03:08]}  Qb6 {[%clk 0:03:12]}
10. Ke2 {[%clk 0:03:05]}  Ba6+ {[%clk 0:03:03]} 11. Kf3 {[%clk 0:03:05]}  Be7 {[%clk 0:02:01]} 12. c4 {[%clk 0:03:04]}  Nc7 {[%clk 0:02:00]}
13. Nd6+ {[%clk 0:02:37]}  Kf8 {[%clk 0:01:43]} 14. b3 {[%clk 0:02:18]}  g6 {[%clk 0:01:37]} 15. Be3 {[%clk 0:02:18]}  Qb4 {[%clk 0:01:31]}
16. Qd2 {[%clk 0:01:54]}  Qxd2 {[%clk 0:01:31]} 17. Bxd2 {[%clk 0:01:55]}  Kg7 {[%clk 0:01:29]} 18. Bb4 {[%clk 0:01:47]}  Rab8 {[%clk 0:01:24]}
19. Ba3 {[%clk 0:01:47]}  Bf8 {[%clk 0:00:52]} 20. Rd1 {[%clk 0:01:46]}  Ne8 {[%clk 0:00:51]} 21. Nxe8+ {[%clk 0:01:02]}  Rxe8 {[%clk 0:00:49]}
22. Bxf8+ {[%clk 0:00:57]}  Rhxf8 {[%clk 0:00:54]} 23. Bd3 {[%clk 0:00:41]}  Rd8 {[%clk 0:00:38]} 24. c5 {[%clk 0:00:39]}  Bb5 {[%clk 0:00:36]}
25. Bxb5 {[%clk 0:00:38]}  cxb5 {[%clk 0:00:38]} 26. b4 {[%clk 0:00:36]}  f6 {[%clk 0:00:36]} 27. exf6+ {[%clk 0:00:23]}  Rxf6 {[%clk 0:00:35]}
28. Ke3 {[%clk 0:00:20]}  Rf7 {[%clk 0:00:35]} 29. Rd6 {[%clk 0:00:20]}  Rdf8 {[%clk 0:00:35]} 30. g3 {[%clk 0:00:21]}  h6 {[%clk 0:00:29]}
31. Rhd1 {[%clk 0:00:22]}  g5 {[%clk 0:00:26]} 32. Rxd7 {[%clk 0:00:20]}  gxf4+ {[%clk 0:00:26]} 33. gxf4 {[%clk 0:00:20]}  Kg6 {[%clk 0:00:23]}
34. Rxf7 {[%clk 0:00:21]}  Rxf7 {[%clk 0:00:24]} 35. Rd6 {[%clk 0:00:20]}  Kf5 {[%clk 0:00:24]} 36. Ra6 {[%clk 0:00:17]}  Rg7 {[%clk 0:00:26]}
37. c6 {[%clk 0:00:11]}  e5 {[%clk 0:00:18]} 38. fxe5 {[%clk 0:00:11]}  Kxe5 {[%clk 0:00:20]} 39. c7 {[%clk 0:00:07]}  Rxc7 {[%clk 0:00:19]}
40. Rxh6 {[%clk 0:00:07]}  Rc3+ {[%clk 0:00:18]} 41. Kd2 {[%clk 0:00:07]}  Rc4 {[%clk 0:00:16]} 42. Rh5+ {[%clk 0:00:07]}  Kf4 {[%clk 0:00:17]}
43. Rh4+ {[%clk 0:00:07]}  Kf3 {[%clk 0:00:18]} 44. Rxc4 {[%clk 0:00:07]}  bxc4 {[%clk 0:00:19]} 45. Kc3 {[%clk 0:00:09]} 1-0

[Event "2026 Biel Blitz Open"]
[Site "Biel, CH"]
[Date "2026.07.19"]
[Round "6"]
[White "Kamildjanov, Saidbek"]
[Black "Hirt, Markus"]
[Result "0-1"]
[Board "52"]
[TimeControl "180+2"]
[WhiteFideId "151105026"]
[BlackFideId "1302582"]
[WhiteElo "1659"]
[BlackElo "1880"]
[WhiteClock "0:01:00"]
[BlackClock "0:03:02"]
[Variant "Standard"]
[EndDate "2026.07.19"]
[EndTime "13:37:59"]

1. e4 {[%clk 0:03:03]}  Nf6 {[%clk 0:03:03]} 2. Nc3 {[%clk 0:03:03]}  e6 {[%clk 0:03:04]} 3. Bc4 {[%clk 0:03:04]}  d5 {[%clk 0:03:04]}
4. exd5 {[%clk 0:03:05]}  exd5 {[%clk 0:03:05]} 5. Bb3 {[%clk 0:02:59]}  c6 {[%clk 0:03:03]} 6. Nf3 {[%clk 0:02:57]}  Bd6 {[%clk 0:03:01]}
7. O-O {[%clk 0:02:55]}  O-O {[%clk 0:03:02]} 8. h3 {[%clk 0:02:56]}  Re8 {[%clk 0:03:04]} 9. d3 {[%clk 0:02:57]}  Nbd7 {[%clk 0:03:00]}
10. Be3 {[%clk 0:02:56]}  Nc5 {[%clk 0:02:46]} 11. Bxc5 {[%clk 0:02:48]}  Bxc5 {[%clk 0:02:46]} 12. d4 {[%clk 0:02:48]}  Bd6 {[%clk 0:02:43]}
13. Re1 {[%clk 0:02:48]}  Bf5 {[%clk 0:02:34]} 14. Ne5 {[%clk 0:02:43]}  Nd7 {[%clk 0:02:16]} 15. Qf3 {[%clk 0:02:24]}  Bg6 {[%clk 0:01:49]}
16. Nxg6 {[%clk 0:02:23]}  hxg6 {[%clk 0:01:49]} 17. Rxe8+ {[%clk 0:02:19]}  Qxe8 {[%clk 0:01:49]} 18. Ne2 {[%clk 0:02:18]}  Qe7 {[%clk 0:01:41]}
19. Ng3 {[%clk 0:02:10]}  Re8 {[%clk 0:01:41]} 20. c3 {[%clk 0:02:07]}  Nf6 {[%clk 0:01:35]} 21. Bc2 {[%clk 0:01:56]}  Bxg3 {[%clk 0:01:27]}
22. fxg3 {[%clk 0:01:53]}  Qe2 {[%clk 0:01:26]} 23. Rc1 {[%clk 0:01:49]}  Qxf3 {[%clk 0:01:15]} 24. gxf3 {[%clk 0:01:49]}  Re2 {[%clk 0:01:17]}
25. Kf1 {[%clk 0:01:43]}  Rd2 {[%clk 0:01:17]} 26. Ke1 {[%clk 0:01:36]}  Rh2 {[%clk 0:01:17]} 27. h4 {[%clk 0:01:30]}  Nh5 {[%clk 0:01:18]}
28. g4 {[%clk 0:01:17]}  Nf4 {[%clk 0:01:10]} 29. b3 {[%clk 0:01:09]}  Rxh4 {[%clk 0:01:02]} 30. Kf2 {[%clk 0:01:08]}  g5 {[%clk 0:00:59]}
31. Re1 {[%clk 0:01:04]}  Rh2+ {[%clk 0:00:54]} 32. Kg3 {[%clk 0:01:00]}  Rxc2 {[%clk 0:00:52]} 33. Re5 {[%clk 0:01:01]}  Rxa2 {[%clk 0:00:44]}
34. Rxg5 {[%clk 0:01:01]}  Ne6 {[%clk 0:00:45]} 35. Rh5 {[%clk 0:01:01]}  Ra3 {[%clk 0:00:44]} 36. f4 {[%clk 0:01:02]}  Rxb3 {[%clk 0:00:43]}
37. f5 {[%clk 0:01:02]}  Rxc3+ {[%clk 0:00:43]} 38. Kh4 {[%clk 0:01:03]}  Nf8 {[%clk 0:00:44]} 39. Kg5 {[%clk 0:00:56]}  Rc1 {[%clk 0:00:38]}
40. f6 {[%clk 0:01:01]}  gxf6+ {[%clk 0:00:35]} 41. Kxf6 {[%clk 0:01:00]}  a5 {[%clk 0:00:31]} 42. Rg5+ {[%clk 0:01:01]}  Ng6 {[%clk 0:00:29]}
43. Re5 {[%clk 0:01:00]}  Rf1+ {[%clk 0:03:02]} 0-1

[Event "2026 Biel Blitz Open"]
[Site "Biel, CH"]
[Date "2026.07.19"]
[Round "6"]
[White "Valsecchi, Luca"]
[Black "Knuesel, Jolan"]
[Result "0-1"]
[Board "53"]
[TimeControl "180+2"]
[WhiteFideId "1368524"]
[BlackFideId "1364529"]
[WhiteElo "1869"]
[BlackElo "1728"]
[WhiteClock "0:00:18"]
[BlackClock "0:00:06"]
[Variant "Standard"]
[EndDate "2026.07.19"]
[EndTime "13:33:04"]

1. d4 {[%clk 0:03:04]}  Nf6 {[%clk 0:03:03]} 2. Nf3 {[%clk 0:03:05]}  d5 {[%clk 0:03:03]} 3. Bf4 {[%clk 0:03:06]}  Bf5 {[%clk 0:03:04]}
4. c4 {[%clk 0:03:06]}  e6 {[%clk 0:02:57]} 5. Nc3 {[%clk 0:03:05]}  c6 {[%clk 0:02:54]} 6. Qb3 {[%clk 0:03:02]}  Qc8 {[%clk 0:02:47]}
7. e3 {[%clk 0:03:00]}  Be7 {[%clk 0:02:43]} 8. Be2 {[%clk 0:02:58]}  O-O {[%clk 0:02:42]} 9. O-O {[%clk 0:02:58]}  Nbd7 {[%clk 0:02:36]}
10. Rac1 {[%clk 0:02:59]}  Ne4 {[%clk 0:02:17]} 11. h3 {[%clk 0:02:53]}  Ndf6 {[%clk 0:02:13]} 12. Nh4 {[%clk 0:02:43]}  Nxc3 {[%clk 0:01:58]}
13. Rxc3 {[%clk 0:02:38]}  Bg6 {[%clk 0:01:29]} 14. Nxg6 {[%clk 0:02:38]}  hxg6 {[%clk 0:01:29]} 15. Bf3 {[%clk 0:02:19]}  Nh5 {[%clk 0:01:00]}
16. Bh2 {[%clk 0:02:17]}  Nf6 {[%clk 0:00:44]} 17. Be5 {[%clk 0:02:06]}  Nd7 {[%clk 0:00:38]} 18. Bg3 {[%clk 0:02:05]}  Nb6 {[%clk 0:00:37]}
19. c5 {[%clk 0:02:02]}  Nc4 {[%clk 0:00:35]} 20. Qc2 {[%clk 0:01:56]}  b6 {[%clk 0:00:30]} 21. b3 {[%clk 0:01:57]}  Na5 {[%clk 0:00:29]}
22. cxb6 {[%clk 0:01:33]}  Bb4 {[%clk 0:00:21]} 23. Rd3 {[%clk 0:01:18]}  axb6 {[%clk 0:00:21]} 24. Rdd1 {[%clk 0:01:01]}  c5 {[%clk 0:00:21]}
25. dxc5 {[%clk 0:00:54]}  Bxc5 {[%clk 0:00:21]} 26. Qb2 {[%clk 0:00:40]}  Be7 {[%clk 0:00:15]} 27. Rc1 {[%clk 0:00:40]}  Qd7 {[%clk 0:00:15]}
28. Rc7 {[%clk 0:00:38]}  Qd8 {[%clk 0:00:16]} 29. Rfc1 {[%clk 0:00:37]}  Bf6 {[%clk 0:00:17]} 30. Qc2 {[%clk 0:00:33]}  g5 {[%clk 0:00:05]}
31. Be2 {[%clk 0:00:33]}  e5 {[%clk 0:00:05]} 32. Qf5 {[%clk 0:00:22]}  Qe8 {[%clk 0:00:03]} 33. Qd7 {[%clk 0:00:18]}  Qxd7 {[%clk 0:00:04]}
34. Rxd7 {[%clk 0:00:19]}  Rac8 {[%clk 0:00:05]} 35. Rxc8 {[%clk 0:00:17]}  Rxc8 {[%clk 0:00:06]} 36. Rxd5 {[%clk 0:00:18]}  Rc1+ {[%clk 0:00:05]}
37. Kh2 {[%clk 0:00:20]}  Rc2 {[%clk 0:00:06]} 38. Bd3 {[%clk 0:00:17]}  Rxa2 {[%clk 0:00:06]} 39. Rd8+ {[%clk 0:00:18]}  Bxd8 {[%clk 0:00:06]} 0-1

[Event "2026 Biel Blitz Open"]
[Site "Biel, CH"]
[Date "2026.07.19"]
[Round "6"]
[White "Gireada, Lucas"]
[Black "Draude, Theo"]
[Result "1-0"]
[Board "54"]
[TimeControl "180+2"]
[WhiteFideId "1373544"]
[BlackFideId "34623809"]
[WhiteElo "1651"]
[BlackElo "1861"]
[WhiteClock "0:00:09"]
[BlackClock "0:00:40"]
[Variant "Standard"]
[EndDate "2026.07.19"]
[EndTime "13:37:51"]

1. d4 {[%clk 0:03:03]}  a6 {[%clk 0:03:03]} 2. c4 {[%clk 0:03:04]}  b5 {[%clk 0:03:05]} 3. e4 {[%clk 0:02:59]}  Bb7 {[%clk 0:03:05]}
4. Nd2 {[%clk 0:02:55]}  bxc4 {[%clk 0:03:03]} 5. Bxc4 {[%clk 0:02:55]}  e6 {[%clk 0:03:04]} 6. Ngf3 {[%clk 0:02:55]}  Nf6 {[%clk 0:03:02]}
7. Qe2 {[%clk 0:02:52]}  Be7 {[%clk 0:02:58]} 8. O-O {[%clk 0:02:51]}  O-O {[%clk 0:02:57]} 9. b3 {[%clk 0:02:51]}  d5 {[%clk 0:02:50]}
10. Bd3 {[%clk 0:02:50]}  dxe4 {[%clk 0:02:49]} 11. Nxe4 {[%clk 0:02:48]}  Nc6 {[%clk 0:02:39]} 12. Bb2 {[%clk 0:02:49]}  Nb4 {[%clk 0:02:39]}
13. Bb1 {[%clk 0:02:45]}  a5 {[%clk 0:02:34]} 14. a3 {[%clk 0:02:30]}  Ba6 {[%clk 0:02:35]} 15. Qd2 {[%clk 0:02:15]}  Bxf1 {[%clk 0:02:27]}
16. Kxf1 {[%clk 0:02:15]}  Nbd5 {[%clk 0:02:28]} 17. Kg1 {[%clk 0:02:11]}  Rb8 {[%clk 0:02:22]} 18. Bc2 {[%clk 0:02:07]}  Nxe4 {[%clk 0:02:12]}
19. Bxe4 {[%clk 0:02:07]}  Nf6 {[%clk 0:02:11]} 20. Bc2 {[%clk 0:02:07]}  Qd5 {[%clk 0:02:10]} 21. Ne5 {[%clk 0:01:59]}  Bd6 {[%clk 0:01:56]}
22. Nc4 {[%clk 0:01:56]}  a4 {[%clk 0:01:49]} 23. Nxd6 {[%clk 0:01:49]}  cxd6 {[%clk 0:01:43]} 24. b4 {[%clk 0:01:47]}  Qc6 {[%clk 0:01:04]}
25. Rc1 {[%clk 0:01:40]}  Qb5 {[%clk 0:01:03]} 26. Bd3 {[%clk 0:01:38]}  Qb7 {[%clk 0:01:04]} 27. Bc2 {[%clk 0:01:25]}  Qa7 {[%clk 0:00:48]}
28. Qg5 {[%clk 0:01:04]}  h6 {[%clk 0:00:37]} 29. Qg3 {[%clk 0:01:04]}  Qd7 {[%clk 0:00:19]} 30. d5 {[%clk 0:00:57]}  e5 {[%clk 0:00:20]}
31. Qd3 {[%clk 0:00:43]}  Qb5 {[%clk 0:00:18]} 32. Qd2 {[%clk 0:00:42]}  Qxd5 {[%clk 0:00:17]} 33. Qe2 {[%clk 0:00:37]}  Qb5 {[%clk 0:00:16]}
34. Qd2 {[%clk 0:00:37]}  Qd7 {[%clk 0:00:17]} 35. f3 {[%clk 0:00:38]}  Qa7+ {[%clk 0:00:18]} 36. Kh1 {[%clk 0:00:37]}  Rfd8 {[%clk 0:00:18]}
37. Rd1 {[%clk 0:00:32]}  Rbc8 {[%clk 0:00:19]} 38. Bb1 {[%clk 0:00:32]}  Qb6 {[%clk 0:00:19]} 39. Qd3 {[%clk 0:00:32]}  Qc7 {[%clk 0:00:17]}
40. Kg1 {[%clk 0:00:30]}  Qc4 {[%clk 0:00:17]} 41. Qd2 {[%clk 0:00:29]}  Qb3 {[%clk 0:00:17]} 42. h4 {[%clk 0:00:21]}  Qe6 {[%clk 0:00:16]}
43. Bc2 {[%clk 0:00:18]}  d5 {[%clk 0:00:13]} 44. Bxa4 {[%clk 0:00:16]}  Qb6+ {[%clk 0:00:14]} 45. Kh1 {[%clk 0:00:15]}  d4 {[%clk 0:00:16]}
46. Bb3 {[%clk 0:00:15]}  Rc7 {[%clk 0:00:11]} 47. Qd3 {[%clk 0:00:16]}  Rcd7 {[%clk 0:00:10]} 48. Qf5 {[%clk 0:00:14]}  Qc7 {[%clk 0:00:08]}
49. Rc1 {[%clk 0:00:11]}  Qd6 {[%clk 0:00:09]} 50. Rd1 {[%clk 0:00:11]}  g6 {[%clk 0:00:08]} 51. Qc2 {[%clk 0:00:09]}  Kg7 {[%clk 0:00:09]}
52. Bc1 {[%clk 0:00:10]}  d3 {[%clk 0:00:10]} 53. Qd2 {[%clk 0:00:11]}  e4 {[%clk 0:00:10]} 54. Qxh6+ {[%clk 0:00:11]}  Kg8 {[%clk 0:00:11]}
55. Qxg6+ {[%clk 0:00:10]}  Kf8 {[%clk 0:00:12]} 56. Bh6+ {[%clk 0:00:09]}  Ke8 {[%clk 0:00:13]} 57. Qg7 {[%clk 0:00:09]}  e3 {[%clk 0:00:10]}
58. Qh8+ {[%clk 0:00:06]}  Ke7 {[%clk 0:00:10]} 59. Qg7 {[%clk 0:00:07]}  Ke8 {[%clk 0:00:10]} 60. Qh8+ {[%clk 0:00:07]}  Ke7 {[%clk 0:00:12]}
61. Qg7 {[%clk 0:00:07]}  Rf8 {[%clk 0:00:13]} 62. Bg5 {[%clk 0:00:07]}  e2 {[%clk 0:00:12]} 63. Re1 {[%clk 0:00:06]}  d2 {[%clk 0:00:14]}
64. Rxe2+ {[%clk 0:00:07]}  Kd8 {[%clk 0:00:15]} 65. Bxf6+ {[%clk 0:00:07]}  Kc8 {[%clk 0:00:16]} 66. Rxd2 {[%clk 0:00:04]}  Qxd2 {[%clk 0:00:17]}
67. Qxf8+ {[%clk 0:00:05]}  Kc7 {[%clk 0:00:19]} 68. Qc5+ {[%clk 0:00:06]}  Kb8 {[%clk 0:00:19]} 69. Qb5+ {[%clk 0:00:06]}  Rb7 {[%clk 0:00:21]}
70. Qe8+ {[%clk 0:00:07]}  Ka7 {[%clk 0:00:22]} 71. Ba4 {[%clk 0:00:06]}  Qc1+ {[%clk 0:00:22]} 72. Kh2 {[%clk 0:00:07]}  Qf4+ {[%clk 0:00:23]}
73. g3 {[%clk 0:00:07]}  Qxf6 {[%clk 0:00:24]} 74. Qe3+ {[%clk 0:00:06]}  Rb6 {[%clk 0:00:25]} 75. Qc5 {[%clk 0:00:05]}  Qb2+ {[%clk 0:00:26]}
76. Kh3 {[%clk 0:00:06]}  Kb7 {[%clk 0:00:24]} 77. Qe7+ {[%clk 0:00:06]}  Kb8 {[%clk 0:00:24]} 78. Qd8+ {[%clk 0:00:07]}  Kb7 {[%clk 0:00:25]}
79. Qd7+ {[%clk 0:00:08]}  Kb8 {[%clk 0:00:25]} 80. Qd8+ {[%clk 0:00:09]}  Ka7 {[%clk 0:00:26]} 81. Qc7+ {[%clk 0:00:10]}  Rb7 {[%clk 0:00:27]}
82. Qc5+ {[%clk 0:00:11]}  Kb8 {[%clk 0:00:28]} 83. Qf8+ {[%clk 0:00:11]}  Kc7 {[%clk 0:00:29]} 84. Qxf7+ {[%clk 0:00:12]}  Kb6 {[%clk 0:00:30]}
85. Qe6+ {[%clk 0:00:11]}  Ka7 {[%clk 0:00:31]} 86. Qe3+ {[%clk 0:00:09]}  Kb8 {[%clk 0:00:32]} 87. Qe8+ {[%clk 0:00:09]}  Ka7 {[%clk 0:00:33]}
88. Qe3+ {[%clk 0:00:09]}  Rb6 {[%clk 0:00:34]} 89. Qe7+ {[%clk 0:00:08]}  Rb7 {[%clk 0:00:35]} 90. Qc5+ {[%clk 0:00:09]}  Kb8 {[%clk 0:00:36]}
91. Qf8+ {[%clk 0:00:09]}  Ka7 {[%clk 0:00:40]} 1-0

[Event "2026 Biel Blitz Open"]
[Site "Biel, CH"]
[Date "2026.07.19"]
[Round "7"]
[White "Arjun Kalyan"]
[Black "Bu, Xiangzhi"]
[Result "0-1"]
[Board "1"]
[TimeControl "180+2"]
[WhiteFideId "35018701"]
[BlackFideId "8601445"]
[WhiteElo "2451"]
[BlackElo "2719"]
[WhiteTitle "GM"]
[BlackTitle "GM"]
[WhiteClock "0:00:05"]
[BlackClock "0:00:11"]
[Variant "Standard"]
[EndDate "2026.07.19"]
[EndTime "13:58:54"]

1. e4 {[%clk 0:03:03]}  e5 {[%clk 0:03:04]} 2. Nf3 {[%clk 0:03:04]}  d6 {[%clk 0:03:05]} 3. d4 {[%clk 0:03:04]}  exd4 {[%clk 0:03:06]}
4. Nxd4 {[%clk 0:03:05]}  Nf6 {[%clk 0:03:08]} 5. Nc3 {[%clk 0:03:05]}  Be7 {[%clk 0:03:09]} 6. g3 {[%clk 0:03:05]}  O-O {[%clk 0:03:08]}
7. Bg2 {[%clk 0:03:06]}  Nc6 {[%clk 0:03:09]} 8. Nxc6 {[%clk 0:02:56]}  bxc6 {[%clk 0:03:10]} 9. O-O {[%clk 0:02:56]}  Nd7 {[%clk 0:03:10]}
10. h3 {[%clk 0:02:50]}  Bf6 {[%clk 0:03:09]} 11. Ne2 {[%clk 0:02:45]}  Rb8 {[%clk 0:03:05]} 12. c3 {[%clk 0:02:46]}  Ba6 {[%clk 0:03:06]}
13. Re1 {[%clk 0:02:45]}  Nc5 {[%clk 0:03:03]} 14. Nf4 {[%clk 0:02:41]}  Be5 {[%clk 0:03:02]} 15. Qc2 {[%clk 0:01:52]}  Bxf4 {[%clk 0:03:01]}
16. Bxf4 {[%clk 0:01:53]}  Nd3 {[%clk 0:03:02]} 17. Reb1 {[%clk 0:01:47]}  Nxf4 {[%clk 0:03:02]} 18. gxf4 {[%clk 0:01:48]}  Qh4 {[%clk 0:03:01]}
19. Qd2 {[%clk 0:01:47]}  f5 {[%clk 0:02:54]} 20. Re1 {[%clk 0:01:30]}  fxe4 {[%clk 0:02:48]} 21. Rxe4 {[%clk 0:01:31]}  Bc8 {[%clk 0:02:45]}
22. Qe3 {[%clk 0:01:28]}  Bf5 {[%clk 0:02:41]} 23. Re7 {[%clk 0:01:27]}  Rxb2 {[%clk 0:01:37]} 24. Rxc7 {[%clk 0:01:26]}  Bg6 {[%clk 0:01:36]}
25. Qxa7 {[%clk 0:01:12]}  Qxf4 {[%clk 0:01:29]} 26. Rxg7+ {[%clk 0:00:57]}  Kh8 {[%clk 0:01:30]} 27. Rb7 {[%clk 0:00:45]}  Rxb7 {[%clk 0:01:21]}
28. Qxb7 {[%clk 0:00:46]}  Qxf2+ {[%clk 0:01:22]} 29. Kh1 {[%clk 0:00:47]}  Qg3 {[%clk 0:00:40]} 30. Qxc6 {[%clk 0:00:42]}  Bh5 {[%clk 0:00:41]}
31. Qe4 {[%clk 0:00:31]}  Bf3 {[%clk 0:00:33]} 32. Qd4+ {[%clk 0:00:22]}  Kg8 {[%clk 0:00:35]} 33. Bxf3 {[%clk 0:00:07]}  Qxh3+ {[%clk 0:00:36]}
34. Kg1 {[%clk 0:00:08]}  Rxf3 {[%clk 0:00:37]} 35. Qc4+ {[%clk 0:00:07]}  Kg7 {[%clk 0:00:19]} 36. Qd4+ {[%clk 0:00:06]}  Kf7 {[%clk 0:00:08]}
37. Qc4+ {[%clk 0:00:06]}  Kg6 {[%clk 0:00:07]} 38. Qe4+ {[%clk 0:00:05]}  Kh6 {[%clk 0:00:08]} 39. Re1 {[%clk 0:00:03]}  Rg3+ {[%clk 0:00:08]}
40. Kf2 {[%clk 0:00:04]}  Qh2+ {[%clk 0:00:09]} 41. Kf1 {[%clk 0:00:05]}  Rg1# {[%clk 0:00:11]} 0-1

[Event "2026 Biel Blitz Open"]
[Site "Biel, CH"]
[Date "2026.07.19"]
[Round "7"]
[White "Mohammad Nubairshah Shaikh"]
[Black "Aronyak Ghosh"]
[Result "1/2-1/2"]
[Board "2"]
[TimeControl "180+2"]
[WhiteFideId "5053196"]
[BlackFideId "25072846"]
[WhiteElo "2316"]
[BlackElo "2488"]
[WhiteTitle "IM"]
[BlackTitle "IM"]
[WhiteClock "0:00:43"]
[BlackClock "0:01:26"]
[Variant "Standard"]
[EndDate "2026.07.19"]
[EndTime "13:55:05"]

1. c4 {[%clk 0:03:03]}  Nf6 {[%clk 0:03:01]} 2. Nc3 {[%clk 0:03:05]}  c5 {[%clk 0:02:59]} 3. g3 {[%clk 0:03:05]}  e6 {[%clk 0:02:48]}
4. Nf3 {[%clk 0:03:04]}  Nc6 {[%clk 0:02:48]} 5. Bg2 {[%clk 0:03:04]}  d5 {[%clk 0:02:48]} 6. cxd5 {[%clk 0:03:05]}  Nxd5 {[%clk 0:02:48]}
7. O-O {[%clk 0:03:05]}  Nf6 {[%clk 0:02:49]} 8. b3 {[%clk 0:02:29]}  Be7 {[%clk 0:02:45]} 9. Ba3 {[%clk 0:01:54]}  Bd7 {[%clk 0:02:44]}
10. Na4 {[%clk 0:01:23]}  b6 {[%clk 0:02:36]} 11. d4 {[%clk 0:01:24]}  Rc8 {[%clk 0:02:23]} 12. Rc1 {[%clk 0:00:47]}  O-O {[%clk 0:02:07]}
13. Qd3 {[%clk 0:00:42]}  cxd4 {[%clk 0:01:25]} 14. Bxe7 {[%clk 0:00:43]}  Qxe7 {[%clk 0:01:26]} 15. Nxd4 {[%clk 0:00:43]} 1/2-1/2